[Event "Titled Tuesday Blitz July 25 Early 2023"]
[White "Shubenkova, Veronika"]
[Black "Panesar Vedant"]
[WhiteFideId "44124040"]
[BlackFideId "35033018"]
[WhiteElo "2502"]
[BlackElo "2709"]
[Result "0-1"]
[Round "9"]
[TimeControl "180+2"]
[Date "2023.07.25"]
[WhiteClock "0:01:14"]
[BlackClock "0:00:21"]
[Board "67"]

1. e4 {[%clk 0:02:57]}  e5 {[%clk 0:02:53]} 2. Nf3 {[%clk 0:02:56]}  Nf6 {[%clk 0:02:54]} 3. Nxe5 {[%clk 0:02:56]}  d6 {[%clk 0:02:55]} 4. Nf3 {[%clk 0:02:56]}  Nxe4 {[%clk 0:02:55]} 5. d3 {[%clk 0:02:55]}  Nf6 {[%clk 0:02:55]} 6. d4 {[%clk 0:02:56]}  d5 {[%clk 0:02:49]} 7. Bd3 {[%clk 0:02:56]}  c5 {[%clk 0:02:50]} 8. c3 {[%clk 0:02:55]}  Nc6 {[%clk 0:02:48]} 9. O-O {[%clk 0:02:55]}  cxd4 {[%clk 0:02:46]} 10. cxd4 {[%clk 0:02:53]}  Be7 {[%clk 0:02:46]} 11. Nc3 {[%clk 0:02:53]}  O-O {[%clk 0:02:47]} 12. a3 {[%clk 0:02:52]}  Bg4 {[%clk 0:02:47]} 13. Be3 {[%clk 0:02:49]}  h6 {[%clk 0:02:46]} 14. b4 {[%clk 0:02:49]}  Rc8 {[%clk 0:02:45]} 15. Rc1 {[%clk 0:02:48]}  Re8 {[%clk 0:02:42]} 16. h3 {[%clk 0:02:48]}  Bh5 {[%clk 0:02:40]} 17. g4 {[%clk 0:02:48]}  Bg6 {[%clk 0:02:40]} 18. Bxg6 {[%clk 0:02:48]}  fxg6 {[%clk 0:02:41]} 19. Qd3 {[%clk 0:02:48]}  g5 {[%clk 0:02:31]} 20. Rfe1 {[%clk 0:02:47]}  Rf8 {[%clk 0:02:29]} 21. Ne5 {[%clk 0:02:45]}  Bd6 {[%clk 0:02:24]} 22. f4 {[%clk 0:02:42]}  gxf4 {[%clk 0:02:19]} 23. Bxf4 {[%clk 0:02:39]}  Nxg4 {[%clk 0:02:03]} 24. Nxc6 {[%clk 0:02:37]}  Rxc6 {[%clk 0:01:43]} 25. Bxd6 {[%clk 0:02:36]}  Nf2 {[%clk 0:01:43]} 26. Qg3 {[%clk 0:02:30]}  Rxd6 {[%clk 0:01:39]} 27. Rc2 {[%clk 0:02:14]}  Rdf6 {[%clk 0:01:29]} 28. Qg2 {[%clk 0:02:00]}  Rf3 {[%clk 0:01:24]} 29. Rxf2 {[%clk 0:01:50]}  Rxf2 {[%clk 0:01:22]} 30. Qxd5+ {[%clk 0:01:50]}  Qxd5 {[%clk 0:01:15]} 31. Nxd5 {[%clk 0:01:51]}  Rd2 {[%clk 0:01:11]} 32. Ne7+ {[%clk 0:01:50]}  Kf7 {[%clk 0:01:05]} 33. Nf5 {[%clk 0:01:45]}  Kg6 {[%clk 0:00:49]} 34. Ne7+ {[%clk 0:01:43]}  Kh7 {[%clk 0:00:43]} 35. d5 {[%clk 0:01:42]}  Rf3 {[%clk 0:00:42]} 36. Rf1 {[%clk 0:01:29]}  Rg3+ {[%clk 0:00:41]} 37. Kh1 {[%clk 0:01:28]}  Rxh3+ {[%clk 0:00:42]} 38. Kg1 {[%clk 0:01:28]}  Rg3+ {[%clk 0:00:38]} 39. Kh1 {[%clk 0:01:27]}  Rxa3 {[%clk 0:00:37]} 40. Re1 {[%clk 0:01:25]}  Rad3 {[%clk 0:00:33]} 41. b5 {[%clk 0:01:23]}  a6 {[%clk 0:00:31]} 42. bxa6 {[%clk 0:01:22]}  bxa6 {[%clk 0:00:32]} 43. Ra1 {[%clk 0:01:22]}  Rd1+ {[%clk 0:00:31]} 44. Rxd1 {[%clk 0:01:21]}  Rxd1+ {[%clk 0:00:32]} 45. Kg2 {[%clk 0:01:22]}  g5 {[%clk 0:00:30]} 46. Kf3 {[%clk 0:01:22]}  Kg7 {[%clk 0:00:28]} 47. Ke2 {[%clk 0:01:22]}  Kf7 {[%clk 0:00:24]} 48. Nf5 {[%clk 0:01:16]}  Rxd5 {[%clk 0:00:22]} 49. Nxh6+ {[%clk 0:01:16]}  Ke6 {[%clk 0:00:21]} 50. Ke3 {[%clk 0:01:15]}  a5 {[%clk 0:00:19]} 51. Ng4 {[%clk 0:01:15]}  a4 {[%clk 0:00:20]} 52. Nf2 {[%clk 0:01:15]}  a3 {[%clk 0:00:20]} 53. Nd3 {[%clk 0:01:14]}  Rxd3+ {[%clk 0:00:20]} 54. Kxd3 {[%clk 0:01:14]}  a2 {[%clk 0:00:21]} 0-1


[Site "https://www.chess.com"]

[Event "Titled Tuesday Blitz July 25 Early 2023"]
[White "Weetik, Vjacheslav"]
[Black "Roberson, Peter T"]
[WhiteFideId "4153472"]
[BlackFideId "412384"]
[WhiteElo "2676"]
[BlackElo "2498"]
[Result "1-0"]
[Round "9"]
[TimeControl "180+2"]
[Date "2023.07.25"]
[WhiteClock "0:00:06"]
[BlackClock "0:00:00"]
[Board "68"]

1. d4 {[%clk 0:03:00]}  Nf6 {[%clk 0:02:59]} 2. c4 {[%clk 0:03:00]}  c5 {[%clk 0:03:00]} 3. d5 {[%clk 0:02:59]}  e6 {[%clk 0:03:00]} 4. Nc3 {[%clk 0:02:58]}  exd5 {[%clk 0:03:01]} 5. cxd5 {[%clk 0:02:59]}  d6 {[%clk 0:03:02]} 6. e4 {[%clk 0:02:59]}  g6 {[%clk 0:03:02]} 7. h3 {[%clk 0:02:59]}  Bg7 {[%clk 0:03:02]} 8. Bd3 {[%clk 0:02:59]}  O-O {[%clk 0:03:02]} 9. Nf3 {[%clk 0:03:00]}  b5 {[%clk 0:03:02]} 10. Bxb5 {[%clk 0:02:59]}  Nxe4 {[%clk 0:03:01]} 11. Nxe4 {[%clk 0:02:59]}  Qa5+ {[%clk 0:03:02]} 12. Nfd2 {[%clk 0:02:57]}  Qxb5 {[%clk 0:03:02]} 13. Nxd6 {[%clk 0:02:57]}  Qa6 {[%clk 0:03:02]} 14. N2c4 {[%clk 0:02:58]}  Nd7 {[%clk 0:03:03]} 15. O-O {[%clk 0:02:57]}  Ne5 {[%clk 0:03:03]} 16. Nxe5 {[%clk 0:02:39]}  Bxe5 {[%clk 0:03:04]} 17. Nxc8 {[%clk 0:02:35]}  Raxc8 {[%clk 0:03:05]} 18. Qf3 {[%clk 0:02:24]}  Qf6 {[%clk 0:03:04]} 19. Qxf6 {[%clk 0:02:11]}  Bxf6 {[%clk 0:03:05]} 20. Rb1 {[%clk 0:02:02]}  Rfd8 {[%clk 0:02:48]} 21. b3 {[%clk 0:01:38]}  Rxd5 {[%clk 0:02:48]} 22. Be3 {[%clk 0:01:38]}  c4 {[%clk 0:02:30]} 23. bxc4 {[%clk 0:01:31]}  Rxc4 {[%clk 0:02:28]} 24. Bh6 {[%clk 0:01:11]}  Rc8 {[%clk 0:02:03]} 25. Rb7 {[%clk 0:00:52]}  Rh5 {[%clk 0:01:56]} 26. Be3 {[%clk 0:00:50]}  Ra5 {[%clk 0:01:55]} 27. Rd1 {[%clk 0:00:43]}  Rxa2 {[%clk 0:01:14]} 28. Rdd7 {[%clk 0:00:43]}  Rf8 {[%clk 0:00:55]} 29. Bxa7 {[%clk 0:00:20]}  Be5 {[%clk 0:00:46]} 30. g4 {[%clk 0:00:18]}  Rc2 {[%clk 0:00:38]} 31. Be3 {[%clk 0:00:16]}  h5 {[%clk 0:00:34]} 32. gxh5 {[%clk 0:00:16]}  gxh5 {[%clk 0:00:34]} 33. Rd5 {[%clk 0:00:15]}  Rc7 {[%clk 0:00:15]} 34. Rxc7 {[%clk 0:00:08]}  Bxc7 {[%clk 0:00:16]} 35. Rxh5 {[%clk 0:00:08]}  f6 {[%clk 0:00:15]} 36. Kg2 {[%clk 0:00:08]}  Ra8 {[%clk 0:00:08]} 37. Rb5 {[%clk 0:00:08]}  Rb8 {[%clk 0:00:05]} 38. Rd5 {[%clk 0:00:07]}  Rd8 {[%clk 0:00:04]} 39. Rf5 {[%clk 0:00:04]}  Kg7 {[%clk 0:00:01]} 40. h4 {[%clk 0:00:05]}  Kg6 {[%clk 0:00:02]} 41. Rb5 {[%clk 0:00:05]}  Rd7 {[%clk 0:00:01]} 42. h5+ {[%clk 0:00:05]}  Kf7 {[%clk 0:00:01]} 43. Kf3 {[%clk 0:00:06]}  Re7 {[%clk 0:00:02]} 44. Kg4 {[%clk 0:00:06]}  Be5 {[%clk 0:00:02]} 45. f4 {[%clk 0:00:05]}  Bd6 {[%clk 0:00:02]} 46. Bd2 {[%clk 0:00:05]}  Re4 {[%clk 0:00:02]} 47. Rd5 {[%clk 0:00:05]}  Ke6 {[%clk 0:00:02]} 48. Rd3 {[%clk 0:00:05]}  f5+ {[%clk 0:00:03]} 49. Kf3 {[%clk 0:00:06]}  Be7 {[%clk 0:00:02]} 50. Rb3 {[%clk 0:00:05]}  Kf7 {[%clk 0:00:02]} 51. Rb5 {[%clk 0:00:05]}  Rd4 {[%clk 0:00:01]} 52. Be3 {[%clk 0:00:05]}  Rd3 {[%clk 0:00:01]} 53. Rxf5+ {[%clk 0:00:05]}  Ke6 {[%clk 0:00:01]} 54. Re5+ {[%clk 0:00:06]}  Kf6 {[%clk 0:00:01]} 55. Ke4 {[%clk 0:00:06]}  Rb3 {[%clk 0:00:02]} 56. Bd4 {[%clk 0:00:07]}  Rb4 {[%clk 0:00:02]} 57. Rb5+ {[%clk 0:00:05]}  Rxd4+ {[%clk 0:00:03]} 58. Kxd4 {[%clk 0:00:06]}  Bd6 {[%clk 0:00:00]} 59. Ke4 {[%clk 0:00:06]} 1-0


[Site "https://www.chess.com"]

[Event "Titled Tuesday Blitz July 25 Early 2023"]
[White "Yeritsyan, Hayk"]
[Black "Mohammad Fahad, Rahman"]
[WhiteFideId "13307320"]
[BlackFideId "10207791"]
[WhiteElo "2492"]
[BlackElo "2666"]
[Result "0-1"]
[Round "9"]
[TimeControl "180+2"]
[Date "2023.07.25"]
[WhiteClock "0:00:04"]
[BlackClock "0:00:14"]
[Board "69"]

1. c4 {[%clk 0:03:00]}  c6 {[%clk 0:02:59]} 2. Nf3 {[%clk 0:03:00]}  Nf6 {[%clk 0:02:59]} 3. g3 {[%clk 0:02:59]}  d5 {[%clk 0:02:58]} 4. cxd5 {[%clk 0:02:59]}  cxd5 {[%clk 0:02:58]} 5. Bg2 {[%clk 0:02:59]}  Nc6 {[%clk 0:02:58]} 6. O-O {[%clk 0:02:59]}  Bf5 {[%clk 0:02:59]} 7. b3 {[%clk 0:02:55]}  e6 {[%clk 0:02:59]} 8. Bb2 {[%clk 0:02:54]}  h6 {[%clk 0:02:59]} 9. d3 {[%clk 0:02:55]}  Be7 {[%clk 0:02:59]} 10. Nbd2 {[%clk 0:02:54]}  O-O {[%clk 0:03:00]} 11. a3 {[%clk 0:02:54]}  Rc8 {[%clk 0:02:58]} 12. b4 {[%clk 0:02:54]}  Re8 {[%clk 0:02:51]} 13. Nb3 {[%clk 0:02:54]}  b6 {[%clk 0:02:49]} 14. Rc1 {[%clk 0:02:53]}  Bg6 {[%clk 0:02:45]} 15. Rc2 {[%clk 0:02:47]}  Bd6 {[%clk 0:02:43]} 16. Qa1 {[%clk 0:02:47]}  e5 {[%clk 0:01:17]} 17. Rfc1 {[%clk 0:02:42]}  Qd7 {[%clk 0:01:17]} 18. Nxe5 {[%clk 0:02:14]}  Bxe5 {[%clk 0:01:05]} 19. Bxe5 {[%clk 0:02:13]}  Nxe5 {[%clk 0:00:45]} 20. Rxc8 {[%clk 0:02:14]}  Rxc8 {[%clk 0:00:45]} 21. Rxc8+ {[%clk 0:02:14]}  Qxc8 {[%clk 0:00:45]} 22. Qxe5 {[%clk 0:02:15]}  Qc2 {[%clk 0:00:43]} 23. Nd4 {[%clk 0:02:14]}  Qc1+ {[%clk 0:00:37]} 24. Bf1 {[%clk 0:02:14]}  Qxa3 {[%clk 0:00:35]} 25. Nc6 {[%clk 0:02:11]}  a5 {[%clk 0:00:35]} 26. Qb8+ {[%clk 0:02:00]}  Kh7 {[%clk 0:00:35]} 27. Qxb6 {[%clk 0:02:00]}  a4 {[%clk 0:00:35]} 28. Qa5 {[%clk 0:01:50]}  Qb3 {[%clk 0:00:35]} 29. b5 {[%clk 0:01:25]}  a3 {[%clk 0:00:35]} 30. b6 {[%clk 0:01:26]}  a2 {[%clk 0:00:36]} 31. Qa7 {[%clk 0:00:58]}  Qb1 {[%clk 0:00:28]} 32. b7 {[%clk 0:00:57]}  Nd7 {[%clk 0:00:29]} 33. Ne5 {[%clk 0:00:49]}  Nb8 {[%clk 0:00:20]} 34. Qxb8 {[%clk 0:00:17]}  a1=Q {[%clk 0:00:19]} 35. Kg2 {[%clk 0:00:17]}  Qxf1+ {[%clk 0:00:19]} 36. Kf3 {[%clk 0:00:18]}  Qh1+ {[%clk 0:00:18]} 37. Ke3 {[%clk 0:00:12]}  Qac1+ {[%clk 0:00:15]} 38. Kd4 {[%clk 0:00:10]}  Qhe1 {[%clk 0:00:14]} 39. Qa7 {[%clk 0:00:07]}  Qxf2+ {[%clk 0:00:14]} 40. Kxd5 {[%clk 0:00:04]}  Qxa7 {[%clk 0:00:14]} 0-1


[Site "https://www.chess.com"]

[Event "Titled Tuesday Blitz July 25 Early 2023"]
[White "Nagare Kaivalya Sandip"]
[Black "Rietze, Clemens, Dr."]
[WhiteFideId "25957929"]
[BlackFideId "24620351"]
[WhiteElo "2652"]
[BlackElo "2476"]
[Result "1-0"]
[Round "9"]
[TimeControl "180+2"]
[Date "2023.07.25"]
[WhiteClock "0:01:42"]
[BlackClock "0:00:10"]
[Board "71"]

1. e4 {[%clk 0:03:00]}  c5 {[%clk 0:02:59]} 2. Nf3 {[%clk 0:03:00]}  Nc6 {[%clk 0:03:00]} 3. d4 {[%clk 0:03:01]}  cxd4 {[%clk 0:03:01]} 4. Nxd4 {[%clk 0:03:01]}  Nf6 {[%clk 0:03:01]} 5. Nc3 {[%clk 0:03:01]}  d6 {[%clk 0:03:01]} 6. Bg5 {[%clk 0:03:01]}  e6 {[%clk 0:03:02]} 7. Qd2 {[%clk 0:03:02]}  a6 {[%clk 0:03:02]} 8. O-O-O {[%clk 0:03:02]}  Bd7 {[%clk 0:03:03]} 9. f3 {[%clk 0:03:02]}  Be7 {[%clk 0:03:00]} 10. Kb1 {[%clk 0:03:03]}  Rc8 {[%clk 0:02:58]} 11. h4 {[%clk 0:03:03]}  b5 {[%clk 0:02:54]} 12. Nxc6 {[%clk 0:03:03]}  Bxc6 {[%clk 0:02:55]} 13. Bd3 {[%clk 0:03:03]}  b4 {[%clk 0:02:51]} 14. Ne2 {[%clk 0:03:03]}  a5 {[%clk 0:02:52]} 15. Nd4 {[%clk 0:03:03]}  Bd7 {[%clk 0:02:52]} 16. g4 {[%clk 0:03:03]}  h5 {[%clk 0:02:48]} 17. gxh5 {[%clk 0:03:01]}  Rxh5 {[%clk 0:02:28]} 18. Ne2 {[%clk 0:03:01]}  Qb6 {[%clk 0:02:10]} 19. Ng3 {[%clk 0:03:00]}  Rh8 {[%clk 0:02:10]} 20. Be3 {[%clk 0:02:59]}  Qb7 {[%clk 0:02:04]} 21. h5 {[%clk 0:02:59]}  a4 {[%clk 0:02:05]} 22. Qe2 {[%clk 0:02:52]}  Ra8 {[%clk 0:01:54]} 23. Rdg1 {[%clk 0:02:47]}  b3 {[%clk 0:01:53]} 24. cxb3 {[%clk 0:02:47]}  axb3 {[%clk 0:01:54]} 25. a3 {[%clk 0:02:48]}  Bc6 {[%clk 0:01:40]} 26. Nf1 {[%clk 0:02:45]}  Bf8 {[%clk 0:01:31]} 27. Nd2 {[%clk 0:02:42]}  d5 {[%clk 0:01:18]} 28. Bd4 {[%clk 0:02:30]}  dxe4 {[%clk 0:01:07]} 29. Nxe4 {[%clk 0:02:29]}  Nxe4 {[%clk 0:00:53]} 30. Bxe4 {[%clk 0:02:28]}  Bxe4+ {[%clk 0:00:50]} 31. Qxe4 {[%clk 0:02:28]}  Qxe4+ {[%clk 0:00:50]} 32. fxe4 {[%clk 0:02:29]}  Ra4 {[%clk 0:00:45]} 33. Bxg7 {[%clk 0:02:25]}  Bxg7 {[%clk 0:00:42]} 34. Rxg7 {[%clk 0:02:24]}  Rxe4 {[%clk 0:00:41]} 35. Rf1 {[%clk 0:02:19]}  Rxh5 {[%clk 0:00:21]} 36. Rgxf7 {[%clk 0:02:16]}  Rhe5 {[%clk 0:00:20]} 37. Rf8+ {[%clk 0:02:11]}  Ke7 {[%clk 0:00:19]} 38. R1f7+ {[%clk 0:02:11]}  Kd6 {[%clk 0:00:20]} 39. Rd8+ {[%clk 0:02:11]}  Kc5 {[%clk 0:00:20]} 40. Rc7+ {[%clk 0:02:09]}  Kb6 {[%clk 0:00:19]} 41. Rc1 {[%clk 0:02:07]}  Re1 {[%clk 0:00:18]} 42. Rb8+ {[%clk 0:02:07]}  Ka7 {[%clk 0:00:16]} 43. Rxb3 {[%clk 0:02:08]}  Rxc1+ {[%clk 0:00:13]} 44. Kxc1 {[%clk 0:02:08]}  Rd5 {[%clk 0:00:14]} 45. Re3 {[%clk 0:02:07]}  e5 {[%clk 0:00:13]} 46. Kc2 {[%clk 0:02:08]}  Kb6 {[%clk 0:00:14]} 47. Kc3 {[%clk 0:02:08]}  Kc5 {[%clk 0:00:14]} 48. b4+ {[%clk 0:02:09]}  Kb5 {[%clk 0:00:14]} 49. Kb3 {[%clk 0:02:10]}  Kc6 {[%clk 0:00:14]} 50. a4 {[%clk 0:02:10]}  Kd6 {[%clk 0:00:14]} 51. a5 {[%clk 0:02:11]}  Rd1 {[%clk 0:00:14]} 52. Kc4 {[%clk 0:02:10]}  Rc1+ {[%clk 0:00:14]} 53. Kb5 {[%clk 0:02:10]}  Kd5 {[%clk 0:00:14]} 54. a6 {[%clk 0:02:10]}  Ra1 {[%clk 0:00:15]} 55. Rd3+ {[%clk 0:02:06]}  Ke6 {[%clk 0:00:14]} 56. Kb6 {[%clk 0:02:03]}  e4 {[%clk 0:00:13]} 57. Rc3 {[%clk 0:02:00]}  Kd5 {[%clk 0:00:13]} 58. b5 {[%clk 0:01:55]}  Kd4 {[%clk 0:00:13]} 59. Rh3 {[%clk 0:01:53]}  e3 {[%clk 0:00:14]} 60. Rxe3 {[%clk 0:01:40]}  Kxe3 {[%clk 0:00:14]} 61. Ka7 {[%clk 0:01:41]}  Kd4 {[%clk 0:00:13]} 62. b6 {[%clk 0:01:41]}  Kc5 {[%clk 0:00:14]} 63. b7 {[%clk 0:01:42]}  Rb1 {[%clk 0:00:10]} 64. b8=Q {[%clk 0:01:42]} 1-0


[Site "https://www.chess.com"]

[Event "Titled Tuesday Blitz July 25 Early 2023"]
[White "Dinu, Dumitru-Daniel"]
[Black "Mamedov, Edgar"]
[WhiteFideId "1208403"]
[BlackFideId "13739980"]
[WhiteElo "2469"]
[BlackElo "2612"]
[Result "0-1"]
[Round "9"]
[TimeControl "180+2"]
[Date "2023.07.25"]
[WhiteClock "0:00:00"]
[BlackClock "0:00:07"]
[Board "73"]

1. d4 {[%clk 0:03:00]}  d5 {[%clk 0:02:59]} 2. c4 {[%clk 0:03:00]}  e6 {[%clk 0:02:59]} 3. Nc3 {[%clk 0:02:59]}  Nf6 {[%clk 0:02:59]} 4. cxd5 {[%clk 0:02:59]}  exd5 {[%clk 0:02:59]} 5. Bg5 {[%clk 0:02:59]}  c6 {[%clk 0:02:59]} 6. e3 {[%clk 0:02:59]}  Bd6 {[%clk 0:02:59]} 7. Bd3 {[%clk 0:02:57]}  O-O {[%clk 0:03:00]} 8. Qc2 {[%clk 0:02:57]}  h6 {[%clk 0:03:00]} 9. Bh4 {[%clk 0:02:56]}  Re8 {[%clk 0:03:00]} 10. Nge2 {[%clk 0:02:55]}  a5 {[%clk 0:03:00]} 11. O-O {[%clk 0:02:54]}  Bxh2+ {[%clk 0:03:00]} 12. Kxh2 {[%clk 0:02:46]}  Ng4+ {[%clk 0:02:59]} 13. Kg3 {[%clk 0:02:36]}  g5 {[%clk 0:02:58]} 14. Bf5 {[%clk 0:01:47]}  gxh4+ {[%clk 0:02:55]} 15. Kh3 {[%clk 0:01:44]}  h5 {[%clk 0:02:41]} 16. Nf4 {[%clk 0:01:29]}  Rxe3+ {[%clk 0:02:06]} 17. fxe3 {[%clk 0:01:13]}  Nxe3 {[%clk 0:02:06]} 18. Qe2 {[%clk 0:01:07]}  Bxf5+ {[%clk 0:02:05]} 19. Kh2 {[%clk 0:01:06]}  Nxf1+ {[%clk 0:01:59]} 20. Rxf1 {[%clk 0:01:06]}  Bg4 {[%clk 0:01:59]} 21. Qe3 {[%clk 0:00:46]}  Nd7 {[%clk 0:01:52]} 22. Nd3 {[%clk 0:00:42]}  Nf8 {[%clk 0:01:31]} 23. Ne5 {[%clk 0:00:39]}  Be6 {[%clk 0:01:01]} 24. Qh6 {[%clk 0:00:37]}  Nh7 {[%clk 0:00:58]} 25. Qxh5 {[%clk 0:00:30]}  Qg5 {[%clk 0:00:57]} 26. Qf3 {[%clk 0:00:24]}  f6 {[%clk 0:00:51]} 27. Nd3 {[%clk 0:00:21]}  Re8 {[%clk 0:00:51]} 28. Re1 {[%clk 0:00:16]}  Bf7 {[%clk 0:00:39]} 29. Rxe8+ {[%clk 0:00:16]}  Bxe8 {[%clk 0:00:40]} 30. Nc5 {[%clk 0:00:16]}  b6 {[%clk 0:00:35]} 31. Ne6 {[%clk 0:00:16]}  Qd2 {[%clk 0:00:33]} 32. Qg4+ {[%clk 0:00:15]}  Ng5 {[%clk 0:00:33]} 33. Nxg5 {[%clk 0:00:12]}  Qxg5 {[%clk 0:00:29]} 34. Qc8 {[%clk 0:00:12]}  Qf4+ {[%clk 0:00:27]} 35. Kh1 {[%clk 0:00:10]}  Qc1+ {[%clk 0:00:25]} 36. Kh2 {[%clk 0:00:10]}  Qf4+ {[%clk 0:00:26]} 37. Kh1 {[%clk 0:00:11]}  Kf8 {[%clk 0:00:26]} 38. Qe6 {[%clk 0:00:07]}  Qc1+ {[%clk 0:00:23]} 39. Kh2 {[%clk 0:00:07]}  Qf4+ {[%clk 0:00:24]} 40. Kh1 {[%clk 0:00:08]}  Qxd4 {[%clk 0:00:25]} 41. Ne2 {[%clk 0:00:08]}  Qe5 {[%clk 0:00:21]} 42. Qg4 {[%clk 0:00:08]}  Bh5 {[%clk 0:00:20]} 43. Qc8+ {[%clk 0:00:08]}  Kg7 {[%clk 0:00:19]} 44. Qd7+ {[%clk 0:00:08]}  Bf7 {[%clk 0:00:18]} 45. Qg4+ {[%clk 0:00:07]}  Qg5 {[%clk 0:00:17]} 46. Qf3 {[%clk 0:00:08]}  c5 {[%clk 0:00:15]} 47. Nf4 {[%clk 0:00:08]}  d4 {[%clk 0:00:15]} 48. Nh3 {[%clk 0:00:08]}  Qc1+ {[%clk 0:00:14]} 49. Kh2 {[%clk 0:00:08]}  Qe3 {[%clk 0:00:14]} 50. Qg4+ {[%clk 0:00:08]}  Kf8 {[%clk 0:00:14]} 51. Qc8+ {[%clk 0:00:08]}  Be8 {[%clk 0:00:13]} 52. Qg4 {[%clk 0:00:03]}  d3 {[%clk 0:00:13]} 53. Nf4 {[%clk 0:00:03]}  d2 {[%clk 0:00:12]} 54. Ne6+ {[%clk 0:00:03]}  Ke7 {[%clk 0:00:09]} 55. Ng7 {[%clk 0:00:04]}  Bd7 {[%clk 0:00:08]} 56. Qd1 {[%clk 0:00:02]}  Qf4+ {[%clk 0:00:08]} 57. Kh1 {[%clk 0:00:02]}  Qe3 {[%clk 0:00:07]} 58. Kh2 {[%clk 0:00:02]}  Qe5+ {[%clk 0:00:07]} 59. Kh1 {[%clk 0:00:00]}  Qe1+ {[%clk 0:00:07]} 0-1


[Site "https://www.chess.com"]

[Event "Titled Tuesday Blitz July 25 Early 2023"]
[White "Balla, Tamas-Kristof"]
[Black "Arabidze, Meri"]
[WhiteFideId "1208497"]
[BlackFideId "13604040"]
[WhiteElo "2436"]
[BlackElo "2611"]
[Result "0-1"]
[Round "9"]
[TimeControl "180+2"]
[Date "2023.07.25"]
[WhiteClock "0:00:04"]
[BlackClock "0:00:07"]
[Board "75"]

1. e4 {[%clk 0:03:00]}  c5 {[%clk 0:02:55]} 2. c3 {[%clk 0:02:59]}  d5 {[%clk 0:02:53]} 3. exd5 {[%clk 0:03:00]}  Qxd5 {[%clk 0:02:54]} 4. d4 {[%clk 0:03:00]}  Nc6 {[%clk 0:02:52]} 5. Nf3 {[%clk 0:03:00]}  Bg4 {[%clk 0:02:51]} 6. Be2 {[%clk 0:03:01]}  e6 {[%clk 0:02:47]} 7. Be3 {[%clk 0:02:58]}  Nf6 {[%clk 0:02:46]} 8. h3 {[%clk 0:02:58]}  Bh5 {[%clk 0:02:45]} 9. O-O {[%clk 0:02:57]}  cxd4 {[%clk 0:02:39]} 10. cxd4 {[%clk 0:02:57]}  Bb4 {[%clk 0:02:39]} 11. Nc3 {[%clk 0:02:57]}  Bxc3 {[%clk 0:02:39]} 12. bxc3 {[%clk 0:02:58]}  O-O {[%clk 0:02:36]} 13. c4 {[%clk 0:02:51]}  Qd7 {[%clk 0:02:33]} 14. Qd3 {[%clk 0:02:22]}  Rfd8 {[%clk 0:02:27]} 15. Rfd1 {[%clk 0:02:22]}  Rac8 {[%clk 0:02:22]} 16. Rac1 {[%clk 0:02:21]}  b6 {[%clk 0:02:19]} 17. Bg5 {[%clk 0:01:29]}  Bxf3 {[%clk 0:02:03]} 18. Bxf3 {[%clk 0:01:26]}  Nxd4 {[%clk 0:02:03]} 19. Bxf6 {[%clk 0:01:01]}  gxf6 {[%clk 0:02:04]} 20. Qe4 {[%clk 0:00:57]}  f5 {[%clk 0:01:46]} 21. Qf4 {[%clk 0:00:53]}  Nxf3+ {[%clk 0:01:09]} 22. Qxf3 {[%clk 0:00:54]}  Qc7 {[%clk 0:01:10]} 23. Qe3 {[%clk 0:00:44]}  Qe7 {[%clk 0:01:03]} 24. Qg3+ {[%clk 0:00:38]}  Kh8 {[%clk 0:01:03]} 25. Re1 {[%clk 0:00:32]}  Qf6 {[%clk 0:00:59]} 26. Rc3 {[%clk 0:00:26]}  Rg8 {[%clk 0:00:58]} 27. Qf3 {[%clk 0:00:25]}  Rg6 {[%clk 0:00:50]} 28. g3 {[%clk 0:00:12]}  Rcg8 {[%clk 0:00:41]} 29. Kh2 {[%clk 0:00:13]}  Qg5 {[%clk 0:00:39]} 30. c5 {[%clk 0:00:11]}  bxc5 {[%clk 0:00:38]} 31. Rxc5 {[%clk 0:00:11]}  Qd2 {[%clk 0:00:36]} 32. Re2 {[%clk 0:00:11]}  Qd4 {[%clk 0:00:35]} 33. Rc7 {[%clk 0:00:11]}  R6g7 {[%clk 0:00:32]} 34. Rb7 {[%clk 0:00:10]}  a5 {[%clk 0:00:31]} 35. Rc2 {[%clk 0:00:09]}  Qf6 {[%clk 0:00:26]} 36. Rb3 {[%clk 0:00:08]}  e5 {[%clk 0:00:26]} 37. Rc6 {[%clk 0:00:06]}  Qg5 {[%clk 0:00:26]} 38. h4 {[%clk 0:00:04]}  Qg4 {[%clk 0:00:13]} 39. Qxg4 {[%clk 0:00:04]}  Rxg4 {[%clk 0:00:10]} 40. Rb5 {[%clk 0:00:04]}  f4 {[%clk 0:00:10]} 41. Rxe5 {[%clk 0:00:05]}  fxg3+ {[%clk 0:00:10]} 42. fxg3 {[%clk 0:00:05]}  Rxg3 {[%clk 0:00:11]} 43. Rxa5 {[%clk 0:00:06]}  Rg2+ {[%clk 0:00:11]} 44. Kh1 {[%clk 0:00:06]}  Rg1+ {[%clk 0:00:11]} 45. Kh2 {[%clk 0:00:07]}  R1g2+ {[%clk 0:00:12]} 46. Kh1 {[%clk 0:00:07]}  R2g4 {[%clk 0:00:12]} 47. Rh5 {[%clk 0:00:04]}  Rg1+ {[%clk 0:00:07]} 48. Kh2 {[%clk 0:00:05]}  R1g2+ {[%clk 0:00:07]} 49. Kh1 {[%clk 0:00:05]}  Rxa2 {[%clk 0:00:07]} 50. Rf6 {[%clk 0:00:03]}  Kg7 {[%clk 0:00:07]} 51. Rfh6 {[%clk 0:00:03]}  Ra1+ {[%clk 0:00:06]} 52. Kh2 {[%clk 0:00:03]}  Kf8 {[%clk 0:00:06]} 53. Rxh7 {[%clk 0:00:03]}  Ra2+ {[%clk 0:00:06]} 54. Kh1 {[%clk 0:00:03]}  Ra1+ {[%clk 0:00:06]} 55. Kh2 {[%clk 0:00:03]}  Ra2+ {[%clk 0:00:07]} 56. Kh1 {[%clk 0:00:04]}  Ra3 {[%clk 0:00:08]} 57. Rh8 {[%clk 0:00:04]}  Rh3# {[%clk 0:00:07]} 0-1


[Site "https://www.chess.com"]